bitfinex-derivatives/quotes_BNBF0:USTF0_20250609
["timestamp","ask_amount","ask_price","bid_price","bid_amount"]
[1749453580511,0.26823393,648.97,648.14,3.83782869]
[1749453581315,0.26823393,648.97,648.16,3.83782869]
[1749453583011,0.26823393,648.97,648.17,3.83782869]
[1749453584914,0.26823393,648.97,648.18,3.83782869]
[1749453586010,0.26823393,648.97,648.19,0.795]
[1749453598925,0.26823393,648.97,648.22,3.83782869]
[1749453600128,0.26823393,648.97,648.21,3.83782869]
[1749453601633,0.26823393,648.97,648.19,4.63282869]
[1749453602227,1.10820774,649.2,648.19,4.63282869]
[1749453602430,0.26825048,648.78,648.19,0.795]
[1749453602832,1.10820774,649.17,648.19,0.795]
[1749453603129,1.10820774,649.16,648.19,0.795]
[1749453603333,1.10820774,649.25,648.19,0.795]
[1749453603533,1.10820774,649.24,648.19,0.795]
[1749453603831,1.10820774,649.23,648.19,0.795]
[1749453604034,1.1081458,649.26,648.19,0.795]
[1749453604035,0.26824737,648.98,648.19,0.795]
[1749453608235,0.26824737,648.98,648.19,4.63282869]
[1749453611341,0.26824737,648.98,648.21,3.83782869]
[1749453612342,0.26824737,648.98,648.23,3.83782869]
[1749453613238,0.26824737,648.98,648.24,3.83782869]
[1749453617640,0.26824737,648.98,648.25,1.018]
[1749453631850,0.26824737,648.98,648.09,0.30859911]
[1749453634650,0.26824737,648.98,648.1,3.83782869]
[1749453634851,0.26824737,648.98,648.1,5.01582869]
[1749453635249,0.26824737,648.98,648.28,3.83782869]
[1749453636855,0.26824737,648.98,648.1,1.178]
[1749453636856,0.26824737,648.98,648.29,3.83782869]
[1749453637553,0.26824737,648.98,648.28,3.83782869]
[1749453637751,0.26824737,648.98,648.29,3.83782869]
[1749453638354,0.26824737,648.98,648.28,3.83782869]
[1749453638856,0.26824737,648.98,648.29,3.83782869]
[1749453639254,0.26824737,648.98,648.28,3.83782869]
[1749453642662,0.26824737,648.98,648.18,3.83782869]
[1749453644267,0.26824737,648.98,648.17,3.83782869]
[1749453644667,0.26824737,648.98,648.19,3.83782869]
[1749453645069,0.26824737,648.98,648.2,3.83782869]
[1749453646469,0.26824737,648.98,648.18,3.83782869]
[1749453652770,0.26824737,648.98,648.24,3.83782869]
[1749453654069,0.26824737,648.98,648.25,3.83782869]
[1749453654475,0.26824737,648.98,648.28,3.83782869]
[1749453654970,0.26824737,648.98,648.31,3.83782869]
[1749453655470,0.26824737,648.98,648.3,3.83782869]
[1749453656369,0.26824737,648.98,648.32,3.83782869]
[1749453658779,0.26824737,648.98,648.33,1.074]
[1749453671693,0.26824737,648.98,648.32,3.83782869]
[1749453673395,0.26824737,648.98,648.22,3.83782869]
[1749453674392,0.26824737,648.98,648.09,0.30859911]
[1749453675696,0.26824737,648.98,648.1,1.059]
[1749453698715,0.26824737,648.98,647.95,3.83782869]
[1749453699213,0.26824737,648.98,647.94,3.83782869]
[1749453700118,0.26824737,648.98,647.93,3.83782869]
[1749453701320,0.26824737,648.98,647.94,0.912]
[1749453711726,0.26824737,648.98,647.98,3.83782869]
[1749453712625,0.26824737,648.98,647.94,0.912]
[1749453712823,0.26824737,648.98,647.94,1.22067055]
[1749453721233,0.26824737,648.98,647.94,0.30867055]
[1749453724132,0.26824737,648.98,647.95,1.221]
[1749453731330,0.26824737,648.98,647.96,3.83782869]
[1749453731730,0.26824737,648.98,647.95,1.221]
[1749453741540,0.26824737,648.98,647.98,3.83782869]
[1749453742137,0.26824737,648.98,648.04,3.83782869]
[1749453742538,0.26824737,648.98,647.95,1.221]
[1749453751151,0.26824737,648.98,647.94,0.30867055]
[1749453755054,0.26824737,648.98,647.95,1.13]
[1749453756463,0.26824737,648.98,647.95,4.96782869]
[1749453757255,0.26824737,648.98,647.95,1.13]
[1749453757857,0.26824737,648.98,647.95,4.96782869]
[1749453758260,0.26824737,648.98,647.97,3.83782869]
[1749453759661,0.26824737,648.98,647.98,3.83782869]
[1749453761365,0.26824737,648.98,647.97,3.83782869]
[1749453763265,0.26824737,648.98,647.98,3.83782869]
[1749453765965,0.26824737,648.98,648.1,3.83782869]
[1749453766367,0.26824737,648.98,648.18,3.83782869]
[1749453767768,0.26824737,648.98,648.1,3.83782869]
[1749453769670,0.26824737,648.98,648.11,3.83782869]
[1749453770071,0.26824737,648.98,648.1,3.83782869]
[1749453770471,0.26824737,648.98,647.95,1.13]
[1749453777075,0.26824737,648.98,647.94,0.30867055]
[1749453780077,0.26824737,648.98,647.95,0.912]
[1749453780477,0.26824737,648.98,647.96,3.83782869]
[1749453780875,0.26824737,648.98,647.97,3.83782869]
[1749453782680,0.26824737,648.98,648.13,3.83782869]
[1749453786087,1.10899596,648.97,647.95,0.912]
[1749453786285,1.10899596,648.96,647.95,0.912]
[1749453786487,1.10899596,648.95,647.95,0.912]
[1749453786691,1.10899596,648.94,647.95,0.912]
[1749453786890,1.10899596,648.93,647.95,0.912]
[1749453787088,1.10899596,648.92,647.95,0.912]
[1749453787389,1.10899596,648.91,647.95,0.912]
[1749453787592,1.10899596,648.9,647.95,0.912]
[1749453787787,1.10899596,648.97,647.95,0.912]
[1749453788087,1.10899596,648.96,647.95,0.912]
[1749453788290,1.10899596,648.95,647.95,0.912]
[1749453788491,1.10899596,648.94,647.95,0.912]
[1749453788691,1.10899596,648.93,647.95,0.912]
[1749453788890,1.10899596,648.92,647.95,0.912]
[1749453789089,1.10899596,648.97,647.95,0.912]
[1749453789288,1.10899596,648.96,647.95,0.912]
[1749453789490,1.10899596,648.95,647.95,0.912]
[1749453789690,1.10899596,648.94,647.95,0.912]
[1749453789891,1.10899596,648.93,647.95,0.912]
[1749453790090,1.10899596,648.92,647.95,0.912]
[1749453790293,1.10899596,648.91,647.95,0.912]
[1749453790494,1.10899596,648.97,647.95,0.912]
[1749453790788,1.10899596,648.96,647.95,0.912]
[1749453790991,1.10899596,648.95,647.95,0.912]
[1749453791194,1.10899596,648.94,647.95,0.912]
[1749453791392,1.10899596,648.93,647.95,0.912]
[1749453791699,1.10899596,648.92,647.95,0.912]
[1749453791891,1.10899596,648.97,647.95,0.912]
[1749453792094,1.10899596,648.96,647.95,0.912]
[1749453792395,1.10899596,648.95,647.95,0.912]
[1749453792595,1.10899596,648.94,647.95,0.912]
[1749453792795,1.10899596,648.93,647.95,0.912]
[1749453792995,1.10899596,648.97,647.95,0.912]
[1749453793196,1.10899596,648.96,647.95,0.912]
[1749453793395,1.10899596,648.95,647.95,0.912]
[1749453793599,1.10899596,648.94,647.95,0.912]
[1749453793794,1.10899596,648.97,647.95,0.912]
[1749453794001,1.10899596,648.96,647.95,0.912]
[1749453794293,1.10899596,648.95,647.95,0.912]
[1749453794493,1.10899596,648.97,647.95,0.912]
[1749453794698,1.10899596,648.96,647.95,0.912]
[1749453794898,1.10899596,648.95,647.95,0.912]
[1749453795098,1.10899596,648.97,647.95,0.912]
[1749453795298,1.10899596,648.96,647.95,0.912]
[1749453795600,1.10899596,648.95,647.95,0.912]
[1749453795797,0.26824737,648.98,647.95,0.912]
[1749453803303,0.26824737,648.98,647.94,0.30867055]
[1749453804108,1.10899596,649.08,647.94,0.30867055]
[1749453804303,0.26834149,648.73,647.94,0.30867055]
[1749453806006,0.26834149,648.73,647.95,1.2]
[1749453818517,0.26834149,648.73,647.95,5.03782869]
[1749453818916,0.26834149,648.73,648.07,3.83782869]
[1749453819515,0.26834149,648.73,648.08,3.83782869]
[1749453820017,0.26834149,648.73,647.95,1.2]
[1749453836036,0.26834149,648.73,647.94,0.30867055]
[1749453839034,0.26834149,648.73,647.95,0.81]
[1749453854045,0.26834149,648.73,647.94,0.30867055]
[1749453858148,0.26834149,648.73,647.95,0.751]
[1749453868551,0.26834149,648.73,647.98,3.83782869]
[1749453870052,0.26834149,648.73,647.97,3.83782869]
[1749453870858,0.26834149,648.73,648.01,3.83782869]
[1749453871358,0.26834149,648.73,648.0,3.83782869]
[1749453871555,0.26834149,648.73,648.02,1.147]
[1749453884664,0.26834149,648.73,647.94,0.30867055]
[1749453888268,0.26834149,648.73,647.95,1.155]
[1749453905377,0.26834149,648.73,647.94,0.30867055]
[1749453907982,0.26834149,648.73,647.95,0.723]
[1749453908475,0.26834149,648.73,647.96,3.83782869]
[1749453909375,0.26834149,648.73,647.95,4.56082869]
[1749453909783,0.26834149,648.73,647.97,3.83782869]
[1749453910679,0.26834149,648.73,648.01,3.83782869]
[1749453911076,0.26834149,648.73,648.04,3.83782869]
[1749453911479,0.26834149,648.73,648.01,3.83782869]
[1749453911977,0.26834149,648.73,648.02,3.83782869]
[1749453912881,0.26834149,648.73,648.0,3.83782869]
[1749453915183,0.26834149,648.73,648.01,3.83782869]
[1749453915682,0.26834149,648.73,648.02,3.83782869]
[1749453916484,0.26834149,648.73,648.0,3.83782869]
[1749453917786,0.26834149,648.73,647.99,3.83782869]
[1749453918585,0.26834149,648.73,647.98,3.83782869]
[1749453919387,0.26834149,648.73,647.99,3.83782869]
[1749453920687,0.26834149,648.73,647.97,3.83782869]
[1749453921389,0.26834149,648.73,647.99,3.83782869]
[1749453922288,0.26834149,648.73,648.05,3.83782869]
[1749453925492,0.26834149,648.73,648.06,3.83782869]
[1749453926392,0.26834149,648.73,648.07,3.83782869]
[1749453927293,0.26834149,648.73,648.06,3.83782869]
[1749453927890,0.26834149,648.73,648.07,3.83782869]
[1749453929491,0.26834149,648.73,648.06,3.83782869]
[1749453929991,0.26834149,648.73,648.07,3.83782869]
[1749453931994,0.26834149,648.73,648.08,0.856]
[1749453935595,0.26834149,648.73,648.08,4.69382869]
[1749453935994,0.26834149,648.73,648.09,3.83782869]
[1749453936395,0.26834149,648.73,648.1,3.83782869]
[1749453936795,0.26834149,648.73,648.09,3.83782869]
[1749453938099,0.26834149,648.73,648.11,3.83782869]
[1749453939099,0.26834149,648.73,648.08,0.856]
[1749453951106,0.26834149,648.73,648.02,3.83782869]
[1749453951302,0.26834149,648.73,647.94,0.30867055]
[1749453954308,0.26834149,648.73,647.95,1.17]
[1749453955709,0.26834149,648.73,647.95,5.00782869]
[1749453956207,0.26834149,648.73,647.95,1.17]
[1749453965417,0.26834149,648.73,647.94,0.30867055]
[1749453968515,0.26834149,648.73,647.95,0.756]
[1749453972516,0.26834149,648.73,647.99,3.83782869]
[1749453972920,0.26834149,648.73,648.0,3.83782869]
[1749453973522,0.26834149,648.73,648.02,3.83782869]
[1749453973922,0.26834149,648.73,648.04,3.83782869]
[1749453974223,0.26834149,648.73,648.07,3.83782869]
[1749453975225,0.26834149,648.73,648.08,3.83782869]
[1749453975525,0.26834149,648.73,648.09,3.83782869]
[1749453976225,0.26834149,648.73,648.1,3.83782869]
[1749453978323,0.26834149,648.73,648.11,3.83782869]
[1749453979324,0.26834149,648.73,648.1,3.83782869]
[1749453980025,0.26834149,648.73,647.95,0.756]
[1749453985532,0.26834149,648.73,647.94,0.30867055]
[1749453988236,0.26834149,648.73,647.95,0.794]
[1749454002250,0.26834149,648.73,648.03,3.83782869]
[1749454003949,0.26834149,648.73,648.06,3.83782869]
[1749454005450,0.26834149,648.73,648.07,3.83782869]
[1749454006256,0.26834149,648.73,648.13,3.83782869]
[1749454007753,0.26834149,648.73,648.14,3.83782869]
[1749454010054,0.26834149,648.73,648.13,3.83782869]
[1749454010856,0.26834149,648.73,648.15,3.83782869]
[1749454012056,0.26834149,648.73,648.16,0.763]
[1749454038170,0.26834149,648.73,647.94,0.30867055]
[1749454041070,0.26834149,648.73,647.95,0.969]
[1749454041369,0.26834149,648.73,647.95,5.11549448]
[1749454041973,1.11074827,649.25,647.95,1.27766579]
[1749454042274,0.26827529,648.8,647.95,1.27766579]
[1749454042471,1.11074827,649.23,647.96,0.30866102]
[1749454042774,0.26827219,648.82,647.96,0.30866102]
[1749454042973,1.11074827,649.21,647.96,0.30866102]
[1749454043175,1.11074827,649.2,647.96,0.30866102]
[1749454043480,0.26827426,648.82,647.96,0.30866102]
[1749454043674,1.11074827,649.18,647.96,0.30866102]
[1749454043975,0.26827632,648.9,647.96,0.30866102]
[1749454047777,0.26827632,648.9,648.1,3.83782869]
[1749454048975,0.26827632,648.9,648.09,3.83782869]
[1749454049575,0.26827632,648.9,648.08,3.83782869]
[1749454050474,0.26827632,648.9,648.11,3.83782869]
[1749454054482,0.26827632,648.9,648.08,3.83782869]
[1749454055781,0.26827632,648.9,648.09,4.99682869]
[1749454056287,0.26827632,648.9,648.09,1.159]
[1749454058187,0.26827632,648.9,648.09,4.99682869]
[1749454059384,0.26827632,648.9,648.2,3.83782869]
[1749454060790,0.26827632,648.9,648.19,3.83782869]
[1749454061988,0.26827632,648.9,648.23,3.83782869]
[1749454062690,0.26827632,648.9,648.09,4.99682869]
[1749454063091,0.26827632,648.9,648.1,3.83782869]
[1749454064296,0.26827632,648.9,648.13,3.83782869]
[1749454070704,0.26827632,648.9,648.14,3.83782869]
[1749454071111,0.26827632,648.9,648.13,3.83782869]
[1749454071809,0.26827632,648.9,648.1,3.83782869]
[1749454072006,0.26827632,648.9,648.11,3.83782869]
[1749454072607,0.26827632,648.9,648.22,3.83782869]
[1749454072907,0.26827632,648.9,648.09,1.159]
[1749454079910,0.26827632,648.9,647.96,0.30866102]
[1749454083214,0.26827632,648.9,647.97,0.939]
[1749454084811,0.26827632,648.9,648.01,3.83782869]
[1749454085212,0.26827632,648.9,648.02,3.83782869]
[1749454085611,0.26827632,648.9,648.01,3.83782869]
[1749454086112,0.26827632,648.9,647.99,3.83782869]
[1749454086512,0.26827632,648.9,647.97,0.939]
[1749454095114,0.26827632,648.9,648.07,3.83782869]
[1749454095521,0.26827632,648.9,648.06,3.83782869]
[1749454096122,0.26827632,648.9,648.0,3.83782869]
[1749454098320,0.26827632,648.9,648.01,3.83782869]
[1749454099823,0.26827632,648.9,648.0,3.83782869]
[1749454100120,0.26827632,648.9,647.96,0.30866102]
[1749454103325,0.26827632,648.9,647.97,1.012]
[1749454108624,0.26827632,648.9,647.97,4.84982869]
[1749454110530,0.26827632,648.9,647.98,3.83782869]
[1749454113728,0.26827632,648.9,647.99,3.83782869]
[1749454114030,0.26827632,648.9,647.98,3.83782869]
[1749454114533,0.26827632,648.9,648.01,3.83782869]
[1749454115229,0.26827632,648.9,648.11,3.83782869]
[1749454115434,0.26827632,648.9,648.13,3.83782869]
[1749454116330,0.26827632,648.9,647.97,1.012]
[1749454116331,0.26827632,648.9,648.15,3.83782869]
[1749454116933,0.26827632,648.9,648.11,3.83782869]
[1749454118734,0.26827632,648.9,648.16,3.83782869]
[1749454120539,0.26827632,648.9,648.15,3.83782869]
[1749454120938,0.26827632,648.9,648.14,3.83782869]
[1749454122434,0.26827632,648.9,648.15,3.83782869]
[1749454124036,0.26827632,648.9,648.07,3.83782869]
[1749454125937,0.26827632,648.9,648.08,3.83782869]
[1749454126336,0.26827632,648.9,648.1,3.83782869]
[1749454126837,0.26827632,648.9,648.12,3.83782869]
[1749454127840,0.26827632,648.9,648.13,3.83782869]
[1749454130241,0.26827632,648.9,648.14,0.777]
[1749454130443,0.26827632,648.9,648.14,4.61482869]
[1749454131142,0.26827632,648.9,648.15,3.83782869]
[1749454131744,0.26827632,648.9,648.16,3.83782869]
[1749454133943,0.26827632,648.9,648.2,3.83782869]
[1749454134842,0.26827632,648.9,648.16,3.83782869]
[1749454135743,0.26827632,648.9,648.17,3.83782869]
[1749454137242,0.26827632,648.9,648.15,3.83782869]
[1749454137648,0.26827632,648.9,648.14,0.777]
[1749454144853,0.26827632,648.9,648.15,3.83782869]
[1749454145154,0.26827632,648.9,648.14,0.777]
[1749454150061,0.26827632,648.9,648.12,3.83782869]
[1749454151559,0.26827632,648.9,648.1,3.83782869]
[1749454152458,0.26827632,648.9,648.09,3.83782869]
[1749454153359,0.26827632,648.9,648.1,3.83782869]
[1749454153560,0.26827632,648.9,648.1,4.57182869]
[1749454155059,0.26827632,648.9,648.19,3.83782869]
[1749454157363,0.26827632,648.9,648.2,3.83782869]
[1749454160268,0.26827632,648.9,648.18,3.83782869]
[1749454160970,0.26827632,648.9,648.19,3.83782869]
[1749454161369,0.26827632,648.9,648.22,3.83782869]
[1749454163766,0.26827632,648.9,648.1,0.734]
[1749454163767,0.26827632,648.9,648.23,3.83782869]
[1749454164166,0.26827632,648.9,648.22,3.83782869]
[1749454165170,0.26827632,648.9,648.23,3.83782869]
[1749454166369,0.26827632,648.9,648.21,3.83782869]
[1749454166766,0.26827632,648.9,648.18,3.83782869]
[1749454168272,0.26827632,648.9,648.19,3.83782869]
[1749454169668,0.26827632,648.9,648.2,3.83782869]
[1749454171469,0.26827632,648.9,648.19,3.83782869]
[1749454172171,0.26827632,648.9,648.1,0.734]
[1749454180578,0.26827632,648.9,647.96,0.30866102]
[1749454183777,0.26827632,648.9,647.97,1.006]
[1749454204100,0.26827632,648.9,647.98,0.3086515]
[1749454206701,0.26827632,648.9,648.0,3.83782869]
[1749454206900,0.26827632,648.9,648.01,0.30863721]
[1749454207100,0.26827632,648.9,648.02,3.83782869]
[1749454207301,0.26827632,648.9,648.02,4.14646113]
[1749454209404,0.26827632,648.9,648.03,3.83782869]
[1749454211404,0.26827632,648.9,648.04,0.78]
[1749454213006,0.26827632,648.9,648.11,3.83782869]
[1749454216108,0.26827632,648.9,648.24,3.83782869]
[1749454216707,0.26827632,648.9,648.27,3.83782869]
[1749454217412,0.26827632,648.9,648.28,3.83782869]
[1749454218011,0.26827632,648.9,648.26,3.83782869]
[1749454218513,0.26827632,648.9,648.13,3.83782869]
[1749454220307,0.26827632,648.9,648.08,3.83782869]
[1749454223810,0.26827632,648.9,648.07,3.83782869]
[1749454226518,0.26827632,648.9,648.04,0.78]
[1749454228619,0.26827632,648.9,648.19,3.83782869]
[1749454229315,0.26827632,648.9,648.21,3.83782869]
[1749454229520,0.26827632,648.9,648.16,3.83782869]
[1749454230021,0.26827632,648.9,648.14,3.83782869]
[1749454231415,0.26827632,648.9,648.16,3.83782869]
[1749454231818,0.26827632,648.9,648.13,3.83782869]
[1749454232823,0.26827632,648.9,648.16,3.83782869]
[1749454234225,0.26827632,648.9,648.14,3.83782869]
[1749454235022,0.26827632,648.9,648.15,3.83782869]
[1749454235424,0.26827632,648.9,648.14,3.83782869]
[1749454236326,0.26827632,648.9,648.12,3.83782869]
[1749454237030,0.26827632,648.9,648.13,3.83782869]
[1749454237229,0.26827632,648.9,648.11,3.83782869]
[1749454237431,0.26827632,648.9,648.14,1.162]
[1749454242232,0.26827632,648.9,648.14,4.99982869]
[1749454242732,0.26827632,648.9,648.15,3.83782869]
[1749454243835,1.11114431,649.27,648.15,3.83782869]
[1749454244033,0.26826392,648.75,648.16,3.83782869]
[1749454244438,1.11114431,649.24,648.16,3.83782869]
[1749454244637,0.26826598,648.75,648.16,3.83782869]
[1749454245036,1.11114431,649.22,648.16,3.83782869]
[1749454245336,0.26826805,648.75,648.16,3.83782869]
[1749454245536,1.11114431,649.22,648.16,3.83782869]
[1749454245838,0.26826909,648.75,648.14,4.99982869]
[1749454246031,1.11114431,649.22,648.14,4.99982869]
[1749454246340,0.26827115,648.75,648.16,3.83782869]
[1749454246535,1.11114431,649.21,648.16,3.83782869]
[1749454246838,0.26826909,648.75,648.17,3.83782869]
[1749454247039,1.11114431,649.21,648.17,3.83782869]
[1749454247335,0.26826805,648.75,648.19,3.83782869]
[1749454247741,1.11114431,649.22,648.2,3.83782869]
[1749454248040,0.26826598,648.75,648.2,3.83782869]
[1749454248336,1.11114431,649.22,648.2,3.83782869]
[1749454248540,0.26826598,648.75,648.19,3.83782869]
[1749454248735,1.11114431,649.2,648.19,3.83782869]
[1749454249041,0.26826702,648.75,648.14,1.162]
[1749454249240,1.11114431,649.18,648.14,1.162]
[1749454249438,1.11114431,649.17,648.14,1.162]
[1749454249639,0.26827426,648.75,648.14,1.162]
[1749454249843,1.11114431,649.15,648.14,1.162]
[1749454250142,0.26827736,648.75,648.14,1.162]
[1749454250345,1.11114431,649.21,648.02,0.30863244]
[1749454250538,0.26827115,648.75,648.02,0.30863244]
[1749454250839,1.11114431,649.19,648.02,0.30863244]
[1749454251039,0.26829908,648.75,648.02,0.30863244]
[1749454251441,1.11114431,649.16,648.02,0.30863244]
[1749454251636,0.26830218,648.75,648.02,0.30863244]
[1749454251839,1.11114431,649.14,648.02,0.30863244]
[1749454252037,1.11114431,649.22,648.02,0.30863244]
[1749454252242,0.26830425,648.75,648.02,0.30863244]
[1749454252443,1.11114431,649.2,648.02,0.30863244]
[1749454252643,0.26829804,648.75,648.02,0.30863244]
[1749454253039,1.11114431,649.17,648.02,0.30863244]
[1749454253239,0.26830011,648.75,648.02,0.30863244]
[1749454253439,1.11114431,649.15,648.03,1.172]
[1749454253639,1.11114431,649.14,648.03,1.172]
[1749454253939,1.11114431,649.13,648.03,1.172]
[1749454254244,0.2682908,648.87,648.03,1.172]
[1749454258645,0.2682908,648.87,648.04,0.30862292]
[1749454259852,0.2682908,648.87,648.26,3.83782869]
[1749454260648,0.2682908,648.87,648.27,3.83782869]
[1749454262749,0.2682908,648.87,648.26,3.83782869]
[1749454263252,0.30805723,649.23,648.26,3.83782869]
[1749454263453,0.26821429,648.96,648.28,3.83782869]
[1749454263850,0.26821429,648.96,648.27,3.83782869]
[1749454264749,0.26821429,648.96,648.26,3.83782869]
[1749454265349,0.26821429,648.96,648.33,3.83782869]
[1749454266252,0.26821429,648.96,648.34,3.83782869]
[1749454266750,0.26821429,648.96,648.33,3.83782869]
[1749454267048,0.26821429,648.96,648.04,0.30862292]
[1749454276057,0.26821429,648.96,648.05,0.839]
[1749454276251,0.26821429,648.96,648.06,0.30861339]
[1749454277155,0.26821429,648.96,648.2,3.83782869]
[1749454277553,0.26821429,648.96,648.08,3.83782869]
[1749454277855,0.26821429,648.96,648.09,0.30859911]
[1749454288667,0.26821429,648.96,648.1,3.83782869]
[1749454290062,0.26821429,648.96,648.13,3.83782869]
[1749454291369,0.26821429,648.96,648.15,3.83782869]
[1749454291770,0.26821429,648.96,648.19,3.83782869]
[1749454293172,0.26821429,648.96,648.2,3.83782869]
[1749454294568,0.26821429,648.96,648.22,3.83782869]
[1749454297676,0.26821429,648.96,648.31,3.83782869]
[1749454298275,0.26821429,648.96,648.32,3.83782869]
[1749454298675,0.26821429,648.96,648.2,3.83782869]
[1749454300277,0.26821429,648.96,648.21,0.824]
[1749454300778,0.26821429,648.96,648.21,4.66182869]
[1749454303477,0.26821429,648.96,648.21,0.824]
[1749454313387,0.26821429,648.96,648.39,3.83782869]
[1749454313786,0.26821429,648.96,648.4,3.83782869]
[1749454314888,0.26821429,648.96,648.39,3.83782869]
[1749454315292,0.26821429,648.96,648.4,3.83782869]
[1749454315788,0.26821429,648.96,648.41,3.83782869]
[1749454316492,0.26821429,648.96,648.42,3.83782869]
[1749454317092,0.26821429,648.96,648.41,3.83782869]
[1749454317393,0.26821429,648.96,648.21,0.824]
[1749454317892,0.26821429,648.96,648.22,3.83782869]
[1749454318787,0.26821429,648.96,648.23,3.83782869]
[1749454319790,0.26821429,648.96,648.21,4.66182869]
[1749454320592,0.26821429,648.96,648.21,0.824]
[1749454321390,0.26821429,648.96,648.2,3.83782869]
[1749454321593,0.26821429,648.96,648.21,3.83782869]
[1749454322492,0.26821429,648.96,648.2,3.83782869]
[1749454322894,0.26821429,648.96,648.21,3.83782869]
[1749454323794,0.26821429,648.96,648.23,3.83782869]
[1749454323996,0.26821429,648.96,648.24,1.103]
[1749454326898,0.26821429,648.96,648.24,4.94082869]
[1749454329595,0.26821429,648.96,648.25,3.83782869]
[1749454329994,0.26821429,648.96,648.27,3.83782869]
[1749454330697,0.26821429,648.96,648.24,1.103]
[1749454337700,0.30805723,649.23,648.24,1.103]
[1749454338198,0.26819362,649.04,648.24,1.103]
[1749454340401,0.26819362,649.04,648.31,3.83782869]
[1749454342706,0.26819362,649.04,648.36,3.83782869]
[1749454343205,0.26819362,649.04,648.31,3.83782869]
[1749454345507,0.26819362,649.04,648.3,3.83782869]
[1749454346304,0.26819362,649.04,648.31,3.83782869]
[1749454346706,0.26819362,649.04,648.3,3.83782869]
[1749454348411,0.26819362,649.04,648.32,3.83782869]
[1749454349310,0.26819362,649.04,648.3,3.83782869]
[1749454349707,0.26819362,649.04,648.31,3.83782869]
[1749454350112,0.26819362,649.04,648.32,0.86]
[1749454352915,0.26819362,649.04,648.33,3.83782869]
[1749454353416,0.26819362,649.04,648.32,4.69782869]
[1749454354017,0.26819362,649.04,648.32,0.86]
[1749454355319,0.26819362,649.04,648.41,3.83782869]
[1749454357513,0.26819362,649.04,648.42,3.83782869]
[1749454358915,0.26819362,649.04,648.41,3.83782869]
[1749454359319,0.26819362,649.04,648.44,3.83782869]
[1749454359718,0.26819362,649.04,648.43,3.83782869]
[1749454360720,0.26819362,649.04,648.44,3.83782869]
[1749454361317,0.26819362,649.04,648.46,3.83782869]
[1749454363921,0.26819362,649.04,648.48,3.83782869]
[1749454366518,0.26819362,649.04,648.27,5.3393006]
[1749454366925,0.26819362,649.04,648.16,3.83782869]
[1749454367123,0.26819362,649.04,648.17,0.30856102]
[1749454367825,0.26819362,649.04,648.18,1.141]
[1749454368021,0.26819362,649.04,648.19,0.3085515]
[1749454376031,0.26819362,649.04,648.19,4.14638019]
[1749454376427,0.26819362,649.04,648.49,3.83782869]
[1749454377525,0.26819362,649.04,648.48,3.83782869]
[1749454377926,0.26819362,649.04,648.19,0.3085515]
[1749454384036,0.26819362,649.04,648.19,0.3085515]
[1749454390135,0.26819362,649.04,648.29,3.83782869]
[1749454390737,0.26819362,649.04,648.19,0.3085515]
[1749454390738,0.26819362,649.04,648.3,3.83782869]
[1749454391244,0.26819362,649.04,648.28,3.83782869]
[1749454393546,0.26819362,649.04,648.29,4.1463326]
[1749454396749,0.26819362,649.04,648.42,3.83782869]
[1749454397449,0.26819362,649.04,648.43,0.962]
[1749454397649,0.26819362,649.04,648.43,4.79982869]
[1749454398546,0.26819362,649.04,648.44,3.83782869]
[1749454399648,1.11104393,649.52,648.44,3.83782869]
[1749454399850,0.26812543,649.12,648.45,3.83782869]
[1749454400249,1.11104393,649.49,648.49,3.83782869]
[1749454400450,0.26811201,649.19,648.49,3.83782869]
[1749454401156,0.26811201,649.19,648.51,3.83782869]
[1749454401751,0.26811201,649.19,648.54,3.83782869]
[1749454402258,0.26811201,649.19,648.53,3.83782869]
[1749454402756,0.26811201,649.19,648.52,3.83782869]
[1749454403559,0.26811201,649.19,648.5,3.83782869]
[1749454404354,0.26811201,649.19,648.49,3.83782869]
[1749454406656,0.26811201,649.19,648.43,0.962]
[1749454406657,0.26811201,649.19,648.47,3.83782869]
[1749454407052,0.26811201,649.19,648.48,3.83782869]
[1749454407752,0.26811201,649.19,648.53,3.83782869]
[1749454407953,0.26811201,649.19,648.54,3.83782869]
[1749454409253,0.26811201,649.19,648.53,3.83782869]
[1749454409857,0.26811201,649.19,648.43,0.962]
[1749454409858,0.26811201,649.19,648.52,3.83782869]
[1749454411055,0.26811201,649.19,648.47,3.83782869]
[1749454411255,1.11104393,649.79,648.47,4.14624696]
[1749454411462,0.26804592,649.36,648.47,4.14624696]
[1749454411662,0.26804592,649.36,648.48,0.30841352]
[1749454411962,1.11104393,649.78,648.48,0.30841352]
[1749454412259,0.26805108,649.36,648.48,0.30841352]
[1749454412562,0.30779174,649.79,648.48,0.30841352]
[1749454412763,0.26805005,649.36,648.48,0.30841352]
[1749454412958,0.30779174,649.79,648.48,0.30841352]